bitfinex-derivatives/quotes_ETHF0:USTF0_20250612
["timestamp","ask_amount","ask_price","bid_price","bid_amount"]
[1749735306384,3.0042,2747.4,2746.6,1.2554]
[1749735306683,0.72801,2746.8,2746.5,4.54697]
[1749735306879,6.949,2747.3,2746.5,5.0743]
[1749735307075,6.949,2747.3,2746.6,3.2078]
[1749735307276,0.72807,2746.5,2746.4,0.0054608]
[1749735307480,5.72807,2746.5,2746.4,0.0054608]
[1749735307684,8.93587,2746.5,2746.4,8e-07]
[1749735307878,0.72831,2745.6,2745.5,3.2078]
[1749735308377,6.949,2745.7,2745.0,3.2078]
[1749735308378,1.82089,2745.5,2745.0,3.2078]
[1749735308578,0.72845,2745.1,2745.0,4.4987]
[1749735309483,0.72845,2745.1,2745.0,3.2078]
[1749735310982,0.7285,2744.9,2744.8,0.0054608]
[1749735311182,7.6785,2744.9,2744.8,0.0054608]
[1749735311382,12.6785,2744.9,2744.8,0.0054608]
[1749735311779,0.72855,2744.7,2744.6,3.2078]
[1749735312078,0.72863,2744.4,2744.3,3.2078]
[1749735312384,3.2078,2744.7,2744.0,3.2078]
[1749735312584,0.72865,2744.4,2744.1,1.1668]
[1749735312882,0.0054608,2744.5,2744.1,1.1668]
[1749735313179,0.0054608,2744.5,2744.4,3.2078]
[1749735313379,3.00794,2745.4,2744.5,1.82149]
[1749735313380,3.2078,2745.4,2744.5,1.82149]
[1749735313576,0.72842,2745.3,2744.9,3.93629]
[1749735313777,1.2918,2745.8,2745.0,1.2362]
[1749735313978,0.72845,2745.1,2745.0,1.2362]
[1749735314283,0.72845,2745.2,2745.0,1.2362]
[1749735314479,0.72841,2745.3,2745.0,1.2362]
[1749735314690,0.72843,2745.2,2745.0,1.2362]
[1749735314882,0.72841,2745.3,2745.0,1.2362]
[1749735315185,0.72844,2745.2,2745.0,1.2362]
[1749735315484,0.72848,2745.0,2744.9,3.2078]
[1749735315685,0.72858,2744.6,2744.5,3.8263]
[1749735315982,0.72854,2744.8,2744.5,3.8263]
[1749735316182,1.2918,2745.3,2744.6,1.1917]
[1749735316384,1.82107,2745.2,2744.6,1.1917]
[1749735316580,0.72856,2744.7,2744.6,1.1917]
[1749735316776,0.72858,2744.6,2744.5,3.2078]
[1749735316982,0.72872,2744.1,2743.9,3.2078]
[1749735317182,1.8215,2744.6,2743.9,3.2078]
[1749735317183,7.0,2744.5,2743.9,3.2078]
[1749735317382,0.72872,2744.1,2743.7,3.2078]
[1749735318984,0.72872,2744.1,2744.0,8e-07]
[1749735320482,5.0293,2744.6,2744.0,8e-07]
[1749735320483,3.2078,2744.6,2744.0,8e-07]
[1749735320681,1.82127,2744.9,2744.5,3.2078]
[1749735320881,7.001,2745.0,2744.5,3.2078]
[1749735321086,0.72856,2744.7,2744.6,1.194]
[1749735323091,0.72858,2744.6,2744.5,3.2078]
[1749735323286,0.7287,2744.2,2744.0,4.4941008]
[1749735323485,0.72867,2744.3,2744.0,4.4941008]
[1749735323986,10.05502,2745.0,2744.0,4.4941008]
[1749735324187,0.72858,2744.6,2744.5,3.2078]
[1749735324384,0.72864,2744.4,2744.2,3.93647]
[1749735324579,0.72864,2744.4,2744.3,1.2863]
[1749735324780,0.72856,2744.7,2744.5,0.72861]
[1749735324987,7.001,2745.0,2744.6,1.2863]
[1749735325188,0.72866,2744.3,2744.2,3.2078]
[1749735325384,0.72867,2744.3,2744.0,1.2036008]
[1749735325589,0.72867,2744.3,2744.2,3.2078]
[1749735326184,0.72872,2744.1,2744.0,1.2036008]
[1749735326388,0.72872,2744.1,2744.0,8e-07]
[1749735327495,1.93442,2744.1,2744.0,8e-07]
[1749735329185,0.72872,2744.1,2744.0,8e-07]
[1749735329384,7.73072,2744.1,2744.0,8e-07]
[1749735329588,0.72872,2744.1,2744.0,8e-07]
[1749735330393,7.002,2744.6,2744.0,8e-07]
[1749735330593,3.2078,2744.7,2744.5,0.72861]
[1749735330594,0.72857,2744.7,2744.5,0.72861]
[1749735330794,10.2098,2745.0,2744.6,1.2223]
[1749735330995,0.72856,2744.7,2744.6,1.2223]
[1749735331191,0.72851,2744.9,2744.7,0.72855]
[1749735331402,7.002,2745.0,2744.8,1.1898]
[1749735331588,0.7285,2744.9,2744.8,1.1898]
[1749735331795,0.0620172,2745.2,2744.8,1.1898]
[1749735331993,0.0620172,2745.2,2745.1,3.93625]
[1749735332395,10.2098,2746.5,2745.9,0.72823]
[1749735332696,0.72818,2746.2,2746.0,3.2078]
[1749735332901,0.72818,2746.2,2746.1,1.1898]
[1749735333998,0.72821,2746.0,2745.9,0.0054608]
[1749735334899,0.00546,2746.4,2745.9,0.0054608]
[1749735335100,0.00546,2746.4,2746.1,3.2078]
[1749735335304,0.72813,2746.3,2746.2,1.2127]
[1749735336701,0.72821,2746.0,2745.9,0.0054608]
[1749735341301,0.72834,2745.5,2745.4,3.2078]
[1749735342200,0.72842,2745.2,2745.1,3.2078]
[1749735343611,6.999,2745.4,2745.1,3.2078]
[1749735343908,6.999,2745.9,2745.4,0.72837]
[1749735344108,0.72829,2745.7,2745.6,3.2078]
[1749735345306,25.2368,2746.2,2745.6,3.2078]
[1749735345506,25.2368,2746.2,2745.4,1.82092]
[1749735345507,0.72821,2746.1,2746.0,3.2078]
[1749735345709,0.72818,2746.2,2746.0,3.2078]
[1749735345909,0.72818,2746.2,2746.1,1.1979]
[1749735346104,0.00546,2746.4,2746.1,1.1979]
[1749735346311,0.72816,2746.2,2746.1,1.1979]
[1749735346700,0.00546,2746.4,2746.1,1.1979]
[1749735346904,0.00546,2746.4,2746.3,3.93594]
[1749735347306,0.00546,2746.4,2746.3,5.20294]
[1749735347503,0.00546,2746.4,2746.3,4.4748]
[1749735348113,6.898,2747.6,2746.4,1.82028]
[1749735348410,0.72794,2747.1,2747.0,3.2078]
[1749735349114,0.72791,2747.2,2747.0,3.2078]
[1749735349411,0.0054608,2747.3,2747.1,1.99491]
[1749735349605,0.0054608,2747.3,2747.2,1.9949]
[1749735349807,1.81916,2748.1,2747.2,1.267]
[1749735350002,0.72777,2747.7,2747.6,3.2078]
[1749735350306,0.72787,2747.3,2747.2,4.4748]
[1749735350707,0.72795,2747.0,2746.9,0.608]
[1749735351101,0.72795,2747.0,2746.9,1.8094]
[1749735351304,6.897,2747.6,2747.0,0.72794]
[1749735351504,0.72785,2747.4,2747.3,3.2078]
[1749735352004,0.7279,2747.2,2747.1,4.4092]
[1749735352506,6.896,2748.0,2747.1,9.4092]
[1749735352711,0.72773,2747.9,2747.8,3.2078]
[1749735352912,3.2078,2748.3,2747.8,3.2078]
[1749735353208,2.4433,2748.5,2747.9,1.2546]
[1749735353415,0.72769,2748.0,2747.9,1.2546]
[1749735353609,0.72774,2747.8,2747.7,3.2078]
[1749735353814,0.72773,2747.9,2747.7,3.2078]
[1749735354114,0.72782,2747.5,2747.4,3.2078]
[1749735354307,0.7279,2747.2,2747.1,3.2078]
[1749735355313,0.7279,2747.2,2746.8,3.2132608]
[1749735355314,0.72798,2746.9,2746.8,3.2132608]
[1749735355508,0.72798,2746.9,2746.8,0.0054608]
[1749735356015,0.72814,2746.3,2746.2,3.2078]
[1749735356217,6.895,2746.6,2746.1,3.2078]
[1749735356513,6.895,2746.6,2745.8,3.2078]
[1749735356514,0.72825,2745.9,2745.8,3.2078]
[1749735357014,0.0054608,2746.1,2745.8,3.2078]
[1749735357212,0.72825,2745.9,2745.8,3.2078]
[1749735357714,0.0054608,2746.1,2745.8,3.2078]
[1749735357911,0.72825,2745.9,2745.8,3.2078]
[1749735358911,0.72825,2745.9,2745.6,0.0054608]
[1749735358912,0.7283,2745.7,2745.6,0.0054608]
[1749735359709,0.0054608,2746.1,2745.6,0.0054608]
[1749735359915,0.7336608,2746.1,2745.8,3.2078]
[1749735360215,0.0054608,2746.1,2746.0,0.72822]
[1749735360616,0.0054608,2746.1,2746.0,5.72822]
[1749735361208,6.896,2747.1,2746.1,0.72819]
[1749735361414,0.72804,2746.7,2746.6,3.2078]
[1749735361822,6.896,2747.1,2746.6,3.2078]
[1749735362020,0.72804,2746.7,2746.6,3.2078]
[1749735362215,8.71585,2747.1,2746.3,1.2743]
[1749735362216,0.72811,2746.4,2746.3,1.2743]
[1749735362410,0.72814,2746.3,2746.2,3.2078]
[1749735363517,3.2078,2747.1,2746.2,3.2078]
[1749735363717,6.896,2747.0,2746.5,3.2078]
[1749735363915,0.72804,2746.7,2746.6,1.2743]
[1749735364121,0.72806,2746.6,2746.5,3.2078]
[1749735364818,0.0620172,2746.7,2746.5,3.2078]
[1749735365011,0.0620172,2746.7,2746.6,1.96196]
[1749735365215,0.0620172,2746.7,2746.6,1.2339]
[1749735365620,0.0620172,2746.7,2746.6,6.96196]
[1749735366121,0.0620172,2746.7,2746.6,6.2339]
[1749735366324,0.0620172,2746.7,2746.6,6.96196]
[1749735366818,0.0620172,2746.7,2746.6,6.2339]
[1749735367023,0.7900572,2746.7,2746.6,6.2339]
[1749735367224,0.0620172,2746.7,2746.6,1.2339]
[1749735367520,0.72806,2746.6,2746.5,3.2078]
[1749735368017,0.7900772,2746.7,2746.5,3.2078]
[1749735368218,0.72806,2746.6,2746.5,3.2078]
[1749735368928,0.72806,2746.6,2746.2,3.2078]
[1749735368929,0.72814,2746.3,2746.2,3.2078]
[1749735369918,0.72814,2746.4,2746.2,3.2078]
[1749735370117,7.515,2746.6,2746.2,3.2078]
[1749735370118,0.72808,2746.6,2746.2,3.2078]
[1749735370416,0.72808,2746.6,2746.5,3.2078]
[1749735370725,0.72814,2746.3,2746.2,3.2078]
[1749735371118,1.8821372,2746.7,2746.2,3.2078]
[1749735371320,0.72806,2746.6,2746.5,3.2078]
[1749735371614,0.0620172,2746.7,2746.6,0.72806]
[1749735371814,7.4998,2747.5,2746.7,1.82008]
[1749735372021,10.1038,2747.9,2747.3,3.2078]
[1749735372222,0.72785,2747.4,2747.3,3.2132608]
[1749735373825,1.81937,2747.8,2747.3,3.2132608]
[1749735374025,3.2078,2747.9,2747.3,3.2132608]
[1749735374026,0.72785,2747.4,2747.3,3.2132608]
[1749735374219,0.72782,2747.6,2747.3,3.9411308]
[1749735374420,0.72785,2747.4,2747.3,3.2132608]
[1749735374925,0.72784,2747.5,2747.3,3.2132608]
[1749735375224,3.08521,2747.9,2747.3,3.2132608]
[1749735375225,0.72785,2747.4,2747.3,3.2132608]
[1749735375425,0.72782,2747.6,2747.3,3.9411208]
[1749735375625,10.1028,2748.0,2747.4,1.2272]
[1749735375922,0.72785,2747.4,2747.3,0.0054608]
[1749735377723,16.96800205,2747.4,2747.3,8e-07]
[1749735378321,41.04100205,2747.4,2747.3,8e-07]
[1749735378524,0.72814,2746.3,2746.2,3.2078]
[1749735380228,0.7282,2746.1,2746.0,0.0054608]
[1749735380428,11.23779962,2746.1,2745.0,3.2078]
[1749735380626,0.72846,2745.1,2745.0,3.2078]
[1749735380826,6.848,2745.4,2745.0,3.2078]
[1749735381029,1.8164,2746.0,2745.3,3.2078]
[1749735381226,1.8164,2746.0,2745.4,4.3994]
[1749735381527,0.6401,2746.0,2745.4,4.4048608]
[1749735381733,0.72828,2745.8,2745.7,3.2078]
[1749735382033,0.72834,2745.6,2745.4,4.4048608]
[1749735382228,0.72836,2745.5,2745.4,0.0054608]
[1749735385430,0.72836,2745.5,2745.4,8e-07]
[1749735385628,5.72836,2745.5,2745.4,8e-07]
[1749735385833,6.90873417,2745.5,2745.4,8e-07]
[1749735386524,0.72836,2745.5,2745.4,8e-07]
[1749735386725,7.57836,2745.5,2745.4,8e-07]
[1749735386927,8.01456,2745.5,2745.4,8e-07]
[1749735387738,8.01456,2745.5,2745.4,3.9361808]
[1749735387739,0.4362,2745.5,2745.4,3.9361808]
[1749735388135,0.4362,2745.5,2745.4,8.9361808]
[1749735388531,0.4362,2745.5,2745.4,10.2290808]
[1749735388732,7.57915,2746.3,2745.4,11.3216108]
[1749735389031,6.851,2746.3,2746.2,0.72817]
[1749735389337,0.0054608,2746.5,2745.4,4.5007008]
[1749735389539,1.2071,2746.2,2745.4,5.2290608]
[1749735389738,1.2071,2746.2,2745.4,4.5007008]
[1749735389940,0.72827,2745.9,2745.5,0.72835]
[1749735390236,1.2071,2746.2,2745.6,1.2094]
[1749735390431,0.72836,2745.5,2745.4,3.2078008]
[1749735390638,1.2071,2746.2,2745.4,3.2078008]
[1749735390838,1.2071,2746.2,2745.6,0.72832]
[1749735391136,1.2071,2746.2,2745.7,1.2094]
[1749735391137,0.72824,2746.0,2745.7,1.2094]
[1749735391339,0.72824,2746.0,2745.8,3.2078]
[1749735391730,1.2071,2746.2,2745.8,3.2078]
[1749735391937,0.72831,2745.7,2745.4,0.7283708]
[1749735392143,0.72831,2745.7,2745.4,1.9786708]
[1749735392737,3.0276,2746.2,2745.6,3.2078]
[1749735392939,0.7283,2745.8,2745.6,3.2078]
[1749735393140,0.72831,2745.7,2745.4,1.9786608]
[1749735393337,1.8205,2746.1,2745.4,1.9786608]
[1749735393338,0.72821,2746.1,2745.6,3.2078]
[1749735393544,0.7282,2746.1,2746.0,3.2078]
[1749735393732,6.851,2746.3,2746.0,3.93601]
[1749735393932,0.0054608,2746.5,2746.0,5.02836]
[1749735394139,0.0054608,2746.5,2746.4,3.93592]
[1749735394643,0.0054608,2746.5,2746.1,1.8575]
[1749735394644,0.72817,2746.2,2746.1,1.8575]
[1749735394845,0.7335608,2746.5,2746.1,5.0653]
[1749735395144,0.0054608,2746.5,2746.3,0.72813]
[1749735395339,0.0054608,2746.5,2746.4,1.2672]
[1749735395642,0.0054608,2746.5,2746.4,1.99532]
[1749735395839,0.0054608,2746.5,2746.4,1.2672]
[1749735396042,0.7335508,2746.5,2746.4,1.2672]
[1749735396343,1.82037,2746.3,2745.5,0.72834]
[1749735396645,0.7283,2745.8,2745.6,0.72833]
[1749735396840,8.67137,2746.3,2745.7,5.2033]
[1749735397035,0.72828,2745.8,2745.7,4.475]
[1749735397240,0.0620172,2746.0,2745.4,8e-07]
[1749735397241,0.72836,2745.5,2745.4,8e-07]
[1749735397435,6.85,2745.9,2745.5,0.72835]
[1749735397745,0.7283,2745.8,2745.6,1.2672]
[1749735398141,6.85,2745.9,2745.6,1.2672]
[1749735398142,0.7283,2745.7,2745.6,1.2672]
[1749735398339,0.0620172,2746.0,2745.6,1.2672]
[1749735398545,0.72828,2745.8,2745.7,3.2078]
[1749735398749,1.8826472,2746.0,2745.4,0.7283808]
[1749735398951,0.72834,2745.6,2745.4,8e-07]
[1749735399151,0.72836,2745.5,2745.4,1.1690008]
[1749735400150,0.72835,2745.6,2745.4,1.1690008]
[1749735400345,0.72836,2745.5,2745.4,1.1690008]
[1749735400551,0.72836,2745.5,2745.4,8e-07]
[1749735400949,0.0620172,2746.0,2745.9,0.72825]
[1749735401246,0.0054608,2746.5,2746.4,0.72812]
[1749735401448,0.0054608,2746.5,2746.4,44.73592]
[1749735401744,1.81957,2747.5,2746.4,45.8111]
[1749735401952,2.99097,2747.5,2746.7,3.2078]
[1749735402251,0.72801,2746.8,2746.7,3.2078]
[1749735402844,0.0054608,2747.0,2746.7,3.2078]
[1749735403250,0.0054608,2747.0,2746.9,0.72798]
[1749735403445,0.0054608,2747.0,2746.8,0.728]
[1749735403939,0.0054608,2747.0,2746.7,3.2078]
[1749735404347,0.0054608,2747.0,2746.7,3.93583]
[1749735404653,0.0054608,2747.0,2746.8,0.72801]
[1749735405042,0.0054608,2747.0,2746.7,3.2078]
[1749735405448,0.0054608,2747.0,2746.8,0.72799]
[1749735406153,0.0054608,2747.0,2746.9,0.72798]
[1749735407247,0.0054608,2747.0,2746.7,3.2078]
[1749735407248,0.0054608,2747.0,2746.8,0.72801]
[1749735407443,0.0054608,2747.0,2746.9,0.72798]
[1749735408346,0.0054608,2747.0,2746.7,3.2078]
[1749735408844,0.72801,2746.8,2746.7,3.2078]
[1749735410142,0.0054608,2747.0,2746.7,3.2078]
[1749735410451,0.067478,2747.0,2746.9,0.72798]
[1749735410655,3.2078,2748.1,2747.0,1.81985]
[1749735410956,3.2078,2748.8,2748.1,0.72764]
[1749735411151,3.2078,2748.8,2748.3,3.2078]
[1749735411756,0.00546,2748.8,2748.7,3.2078]
[1749735412347,0.73294,2748.8,2748.7,3.2078]
[1749735412548,0.00546,2748.8,2748.7,3.2078]
[1749735413553,0.73294,2748.8,2748.7,3.2078]
[1749735413945,0.00546,2748.8,2748.7,3.2078]
[1749735414345,0.73294,2748.8,2748.7,3.2078]
[1749735416349,0.72756,2748.5,2748.4,3.2078]
[1749735418056,0.72759,2748.4,2748.3,0.0054608]
[1749735418956,0.72759,2748.4,2747.5,1.97644983]
[1749735418957,0.7278,2747.6,2747.5,1.97644983]
[1749735419260,0.7278,2747.6,2746.7,7.5283]
[1749735419261,0.72801,2746.8,2746.7,8.114]
[1749735419456,0.72801,2746.8,2746.7,48.914]
[1749735419953,0.0620172,2747.0,2746.7,41.996]
[1749735419954,0.067478,2747.0,2746.7,41.996]
[1749735420156,0.72801,2746.8,2746.7,41.996]
[1749735420363,0.795448,2747.0,2746.7,45.93183]
[1749735420660,0.067478,2747.0,2746.8,0.728]
[1749735421260,0.795438,2747.0,2746.9,1.1823]
[1749735421451,0.72801,2746.8,2746.7,44.5935]
[1749735421653,0.067478,2747.0,2746.7,44.5935]
[1749735422557,0.067478,2747.0,2746.9,0.72798]
[1749735423260,0.067478,2747.0,2746.9,5.72798]
[1749735423759,1.81927,2748.0,2747.4,0.72784]
[1749735423952,1.81927,2748.0,2747.7,3.2078]
[1749735423953,0.72775,2747.8,2747.7,3.2078]
[1749735424359,0.72775,2747.8,2747.7,3.93555]
[1749735424554,0.72775,2747.8,2747.7,3.2078]
[1749735424758,0.72775,2747.8,2747.7,3.93557]
[1749735424955,0.00546,2748.0,2747.7,8.2078]
[1749735425159,0.00546,2748.0,2747.9,0.72772]
[1749735425362,0.00546,2748.0,2747.9,24.81472]
[1749735425553,0.72755,2748.6,2748.0,1.81924]
[1749735425753,0.72755,2748.6,2748.5,3.2078]
[1749735425961,13.21291,2749.1,2748.5,3.2078]
[1749735426160,0.72749,2748.8,2748.6,1.90811]
[1749735426360,0.7275,2748.8,2748.7,1.1806]
[1749735426565,0.72748,2748.9,2748.7,1.1806]
[1749735426862,0.72743,2749.1,2748.9,0.72743]
[1749735427057,0.72745,2749.0,2748.9,1.1806]
[1749735427366,10.1268,2749.5,2748.9,1.1806]
[1749735427559,2.16531038,2749.8,2748.9,1.1806]
[1749735427560,3.8408,2749.8,2749.1,3.2078]
[1749735427862,0.72734,2749.4,2749.2,1.90797]
[1749735428163,5.02568,2750.1,2749.3,1.1806]
[1749735428361,3.2078,2750.1,2749.4,10.1258]
[1749735428561,3.2078,2750.1,2749.4,3.2078]
[1749735428764,0.72723,2749.8,2749.6,0.72727]
[1749735428966,0.72723,2749.8,2749.7,3.2078]
[1749735429159,3.2078,2750.1,2749.7,3.2078]
[1749735429565,3.2078,2750.1,2749.8,1.2028]
[1749735429759,0.72719,2749.9,2749.8,1.2028]
[1749735430055,3.2078,2750.1,2749.4,0.7273]
[1749735430258,3.2078,2750.1,2749.4,6.917]
[1749735430460,0.72727,2749.6,2749.5,1.2028]
[1749735430659,21.2144,2750.0,2749.5,1.2028]
[1749735430863,1.81798,2749.9,2749.3,3.2078]
[1749735431067,3.03238,2749.9,2749.4,40.8]
[1749735431269,0.72728,2749.6,2749.4,41.52731]
[1749735431472,0.72729,2749.6,2749.4,42.73012]
[1749735431770,0.7273,2749.5,2749.4,42.0028]
[1749735432066,0.7273,2749.5,2749.4,40.8]
[1749735432262,3.2078,2749.8,2749.0,10.1248]
[1749735432463,1.81812,2749.7,2749.0,3.2078]
[1749735432664,0.72739,2749.2,2749.0,40.8]
[1749735432864,0.7274,2749.1,2749.0,44.0078]
[1749735433174,0.72739,2749.2,2748.9,0.72745]
[1749735433362,0.72739,2749.2,2749.0,3.93523]
[1749735433563,0.72741,2749.1,2748.9,1.2169]
[1749735433764,1.81829,2749.5,2748.9,40.8]
[1749735433765,0.72743,2749.0,2748.9,40.8]
[1749735434071,0.72741,2749.1,2748.8,0.72747]
[1749735434265,3.8204,2749.5,2748.8,1.94437]
[1749735434466,0.72741,2749.1,2748.8,1.94437]
[1749735434664,0.72739,2749.2,2748.9,0.72744]
[1749735434864,0.72737,2749.3,2748.8,1.2169]
[1749735435063,0.72739,2749.2,2748.8,1.94436]
[1749735435265,1.81838,2749.3,2748.7,3.9353]
[1749735435461,0.72746,2748.9,2748.7,4.4674]
[1749735435664,0.72743,2749.0,2748.7,5.19491]
[1749735435861,5.089,2749.5,2748.7,4.4674]
[1749735436068,0.72742,2749.1,2748.8,1.98707]
[1749735436269,0.72739,2749.2,2748.8,1.2596]
[1749735436469,0.72734,2749.4,2748.8,1.2596]
[1749735436666,0.72736,2749.3,2749.0,0.72741]
[1749735436969,0.72735,2749.3,2748.8,1.2596]
[1749735437165,0.6126,2749.5,2749.1,3.2078]
[1749735437474,0.6126,2749.5,2748.5,44.6297608]
[1749735437475,3.2078,2749.4,2748.5,44.6297608]
[1749735437661,0.72753,2748.6,2748.5,3.2132608]
[1749735438467,1.2381,2749.0,2748.5,3.2132608]
[1749735438769,0.72752,2748.7,2748.5,3.9408108]
[1749735438971,1.2381,2749.4,2749.1,0.72739]
[1749735439274,5.02594,2749.7,2749.1,3.2078]
[1749735439471,0.72733,2749.4,2749.2,1.99876]
[1749735439670,0.72733,2749.4,2749.3,1.2714]
[1749735440470,0.72738,2749.2,2749.1,3.2078]
[1749735440668,0.72743,2749.0,2748.9,1.1751]
[1749735440867,0.72748,2748.8,2748.7,3.2078]
[1749735441173,23.2078,2750.0,2748.7,3.2078]
[1749735441470,0.72738,2749.2,2749.1,3.2078]
[1749735441880,0.72744,2749.0,2748.8,3.2078]
[1749735442067,0.72744,2749.0,2748.9,1.1751]
[1749735442871,0.72753,2748.6,2748.5,3.2132608]
[1749735443773,5.5918,2749.3,2748.6,0.72752]
[1749735443967,0.72753,2748.6,2748.5,3.2132608]
[1749735444475,1.81854,2749.1,2748.5,3.2132608]
[1749735444673,0.72753,2748.7,2748.6,1.9667]
[1749735444877,0.72753,2748.7,2748.6,1.2392]
[1749735445077,7.4102,2749.3,2748.7,0.72748]
[1749735445078,1.81847,2749.2,2748.7,0.72748]
[1749735445273,0.72746,2748.9,2748.8,1.2392]
[1749735445471,0.72753,2748.6,2748.5,3.2132608]
[1749735445878,0.72753,2748.6,2748.5,0.0054608]
[1749735446176,0.72753,2748.6,2747.8,4.447]
[1749735446177,0.72772,2747.9,2747.8,4.447]
[1749735446366,0.72771,2748.0,2747.8,4.447]
[1749735446571,0.72762,2748.3,2748.1,0.72764]
[1749735446768,0.72762,2748.3,2747.8,45.247]
[1749735446769,0.72762,2748.3,2748.2,1.1804]
[1749735447369,0.72762,2748.3,2748.1,0.72767]
[1749735447573,0.72764,2748.2,2748.1,1.1804]
[1749735448475,0.72767,2748.1,2748.0,0.0054608]
[1749735448675,0.72777,2747.7,2747.6,3.2078]
[1749735449574,1.2043,2748.0,2747.6,3.2078]
[1749735449978,0.72777,2747.7,2747.6,3.2078]
[1749735450169,0.72776,2747.8,2747.6,3.2078]
[1749735450371,0.72777,2747.7,2747.6,3.2078]
[1749735451278,3.2078,2748.1,2747.6,8.2078]
[1749735451470,0.7277,2748.0,2747.9,3.2078]
[1749735451671,3.8177608,2748.5,2747.6,4.4703]
[1749735451878,0.72777,2747.7,2747.5,0.0054608]
[1749735452070,3.2078,2748.2,2747.5,0.0054608]
[1749735452274,0.72779,2747.7,2747.5,0.0054608]
[1749735452576,4.3937,2748.2,2747.5,0.0054608]
[1749735452777,0.72779,2747.7,2747.5,0.7332708]
[1749735453084,0.72779,2747.7,2747.5,0.0054608]
[1749735453580,0.72776,2747.8,2747.5,0.0054608]
[1749735453872,0.72776,2747.8,2747.6,0.72779]
[1749735454081,0.72776,2747.8,2747.7,3.2078]
[1749735454278,0.72776,2747.8,2747.5,0.7332708]
[1749735454580,0.7278,2747.6,2747.5,0.0054608]
[1749735456679,1.9914,2747.6,2747.5,0.0054608]
[1749735456882,1.9914,2747.6,2747.3,40.8]
[1749735456883,0.72785,2747.4,2747.3,40.8]
[1749735457176,0.6028,2747.7,2747.3,44.73567]
[1749735457382,0.72785,2747.4,2747.3,40.8]
[1749735459282,0.6028,2747.7,2747.3,44.0078]
[1749735459677,0.72781,2747.6,2747.4,0.72784]
[1749735459887,0.72783,2747.5,2747.3,44.73567]
[1749735460488,0.72783,2747.5,2747.3,44.0078]
[1749735460682,0.72785,2747.4,2747.3,44.0078]
[1749735460877,0.72785,2747.4,2747.3,40.8]
[1749735461186,0.72785,2747.4,2747.3,44.0078]
[1749735461486,0.72785,2747.4,2747.3,40.8]
[1749735462191,0.72785,2747.4,2747.3,44.0078]
[1749735462485,3.2078,2747.9,2747.3,44.0078]
[1749735462693,22.006,2748.7,2747.8,3.2078]
[1749735462694,3.2132608,2748.5,2747.8,3.2078]
[1749735462890,1.8244108,2748.5,2747.9,1.2787]
[1749735463086,1.819,2748.4,2748.0,40.8]
[1749735463284,0.72767,2748.2,2748.0,41.52769]
[1749735463490,0.0054608,2748.5,2748.1,27.2588]
[1749735463689,0.0054608,2748.5,2748.4,3.93539]
[1749735463984,0.5929,2749.3,2748.9,0.72743]
[1749735464189,1.81812,2749.7,2749.0,1.2787]
[1749735464190,0.7274,2749.1,2749.0,1.2787]
[1749735464391,0.7274,2749.1,2749.0,66.1457]
[1749735464687,0.72739,2749.2,2749.0,26.07312]
[1749735464993,0.0054608,2749.4,2749.1,40.8]
[1749735465190,0.72738,2749.2,2749.1,40.8]
[1749735465886,0.72743,2749.1,2748.9,27.2468]
[1749735466080,0.72743,2749.0,2748.9,4.4946]
[1749735466283,0.72745,2748.9,2748.8,0.0054608]
[1749735468389,1.91125,2748.9,2748.8,0.0054608]
[1749735469196,0.6391,2749.0,2748.8,0.0054608]
[1749735469393,4.54361,2749.1,2748.8,0.7329308]
[1749735469593,0.72744,2749.0,2748.8,0.0054608]
[1749735469893,3.8162,2749.1,2748.8,0.7329208]
[1749735470094,0.72745,2749.0,2748.8,0.0054608]
[1749735470294,0.72746,2748.9,2748.8,0.0054608]
[1749735470999,0.72764,2748.2,2748.1,3.2078]
[1749735471594,1.8189,2748.6,2748.1,3.2078]
[1749735471893,0.72764,2748.2,2748.1,3.2078]
[1749735472098,0.72763,2748.3,2748.1,3.2078]
[1749735472297,0.72763,2748.3,2748.1,3.93546]
[1749735473199,0.72764,2748.2,2748.1,3.2078]
[1749735473496,9.88236,2748.8,2748.1,3.2078]
[1749735473692,0.72759,2748.4,2748.2,0.72762]
[1749735473892,0.72759,2748.4,2748.3,1.2032]
[1749735475600,1.81876,2748.8,2748.3,1.2032]
[1749735475799,0.72756,2748.6,2748.3,1.2032]
[1749735476106,0.72756,2748.5,2748.4,3.2078]
[1749735476401,0.72756,2748.5,2748.4,4.4011]
[1749735476604,3.66944,2749.1,2748.4,4.4011]
[1749735476803,0.72755,2748.6,2748.5,0.72755]
[1749735477015,1.81865,2748.9,2748.5,0.72755]
[1749735477016,0.6084,2749.1,2748.5,3.2078]
[1749735477206,0.72753,2748.6,2748.5,3.2078]
[1749735477394,0.72761,2748.3,2748.2,3.2078]
[1749735477909,1.81878,2748.7,2748.2,3.2078]
[1749735478110,0.72761,2748.3,2748.2,3.2078]
[1749735478613,0.72761,2748.3,2748.2,3.93544]
[1749735478910,0.7276,2748.4,2748.3,0.72759]
[1749735480009,1.81879,2748.7,2748.2,3.2078]
[1749735480213,0.72757,2748.5,2748.4,0.72756]
[1749735480614,3.2078,2749.1,2748.3,1.81904]
[1749735480908,0.72743,2749.0,2748.9,3.2078]
[1749735481309,0.72743,2749.0,2748.9,3.93526]
[1749735481509,0.72743,2749.0,2747.8,3.2078]
[1749735481510,10.0288,2749.0,2747.8,3.2078]
[1749735481711,0.72763,2748.3,2748.2,0.72762]
[1749735481911,0.72759,2748.4,2748.3,0.72761]
[1749735482105,1.81887,2748.6,2748.2,0.72763]
[1749735482308,3.2078,2748.8,2748.4,3.2078]